fUST/lending_fUST_20260122
["ID","MTS","AMOUNT","RATE_DAILY","PERIOD"]
[402949779,1769011601731,150.0,8.548e-05,2]
[402949783,1769011667113,150.0,8.528e-05,2]
[402949815,1769011732820,150.0,8.537e-05,2]
[402949859,1769011797781,150.0,8.71e-05,2]
[402949893,1769011832324,-500.0,8.888e-05,2]
[402949894,1769011832334,-467.88406864,8.888e-05,2]
[402949895,1769011832343,-545.0,8.888e-05,2]
[402949896,1769011832352,-214.25836852,8.921e-05,2]
[402949897,1769011832362,-150.0,9.125e-05,2]
[402949898,1769011832372,-155.0,0.00010542,2]
[402949900,1769011832381,-252.82487486,0.00010921,2]
[402949901,1769011832390,-500.0,0.00010993,2]
[402949902,1769011832399,-277.40589002,0.00010993,2]
[402949903,1769011832409,-300.0,0.00011097,2]
[402949904,1769011832418,-300.0,0.00011097,2]
[402949905,1769011832427,-1200.0,0.00011097,2]
[402949906,1769011832436,-420.0,0.00012193,2]
[402949907,1769011832446,-438.87,0.00012329,2]
[402949909,1769011832456,-365.72,0.00012329,2]
[402949910,1769011832465,-304.77,0.00012329,2]
[402949911,1769011832474,-253.98,0.00012329,2]
[402949912,1769011832483,-211.65,0.00012329,2]
[402949913,1769011832492,-176.37,0.00012329,2]
[402949914,1769011832501,-881.88,0.00012329,2]
[402949915,1769011832510,-291.39138119,0.00012922,2]
[402949916,1769011832519,-587.0,0.00013398,2]
[402949917,1769011832528,-500.0,0.00014,2]
[402949918,1769011832537,-400.02,0.00014,2]
[402949920,1769011832740,-185.1202862,0.00014178,2]
[402949921,1769011832749,-351.49793345,0.00014271,2]
[402949922,1769011832758,-456.08313015,0.00014271,2]
[402949923,1769011832768,-185.1202862,0.00014378,2]
[402949924,1769011832778,-317.7366431,0.00014378,2]
[402949925,1769011832787,-208.8725006,0.00014678,2]
[402949926,1769011832796,-603.0173475,0.00014678,2]
[402949927,1769011832805,-270.0,0.00014721,2]
[402949928,1769011832814,-1189.96462024,0.00014902,2]
[402949929,1769011832824,-567.69546738,0.00014902,2]
[402949930,1769011832834,-329.95788752,0.00014922,2]
[402949931,1769011832844,-3206.43674439,0.00015,2]
[402949932,1769011832856,-13501.72522101,0.00015,2]
[402949933,1769011832867,-1746.23643252,0.00015,2]
[402949934,1769011832889,-678.08346952,0.00015,2]
[402949935,1769011832900,-520.8157091,0.00015,2]
[402949945,1769011838239,-243.2790494,0.00014999,2]
[402949946,1769011838250,-232.32714349,0.00015,2]
[402949947,1769011838303,-2829.92790603,0.00015,2]
[402949948,1769011838369,-985.65276141,0.00015,2]
[402949949,1769011838381,-302.0,0.00015,2]
[402949950,1769011838392,-2284.87083648,0.00015,2]
[402949964,1769011840475,-10554.93176656,0.00015,2]
[402949965,1769011840558,-63663.50954968,0.00015,2]
[402950022,1769011843611,-9909.78073313,0.00015,2]
[402950023,1769011843623,-1650.71559576,0.00015,2]
[402950025,1769011843634,-787.38445668,0.00015,2]
[402950030,1769011846416,-1686.23693335,0.00015,2]
[402950031,1769011846429,-370.88638246,0.00015,2]
[402950033,1769011846598,-652.0,0.00015,2]
[402950161,1769012501969,-300.0,0.00010281,2]
[402950166,1769012811131,-517.72364802,0.00010178,2]
[402950212,1769013032558,-968.91284753,0.00010076,2]
[402950221,1769013038457,-1311.3992495,0.00010076,2]
[402950222,1769013038467,-561.0,0.00010076,2]
[402950223,1769013038477,-192.48971828,0.00010282,2]
[402950224,1769013038486,-155.0,0.0001054,2]
[402950225,1769013038496,-227.13786757,0.00012282,2]
[402950226,1769013038505,-237.59521882,0.00013273,2]
[402950227,1769013038514,-390.6615875,0.00013273,2]
[402950228,1769013038524,-501.85584568,0.00013273,2]
[402950229,1769013038538,-216.15816965,0.00013538,2]
[402950230,1769013038547,-370.94261872,0.00013538,2]
[402950231,1769013038557,-750.83670577,0.00014082,2]
[402950232,1769013038568,-5.21209523,0.00014082,2]
[402950233,1769013038579,-4680.21757919,0.00014281,2]
[402950234,1769013038589,-3540.38242294,0.00014281,2]
[402950235,1769013038601,-2129.12289752,0.00014281,2]
[402950799,1769013069327,-3271.78495331,0.00010077,2]
[402950801,1769013090336,150.0,8.632e-05,2]
[402950802,1769013126598,343.38326697,8.876e-05,2]
[402950814,1769013151449,508.67,8.876e-05,2]
[402950815,1769013164572,150.0,8.408e-05,2]
[402950816,1769013165068,150.0,8.809e-05,2]
[402950819,1769013223982,-150.0,9.209e-05,2]
[402950820,1769013237295,150.0,8.387e-05,2]
[402950821,1769013237727,150.0,8.787e-05,2]
[402950822,1769013308647,150.0,8.426e-05,2]
[402950823,1769013309070,150.0,8.828e-05,2]
[402950829,1769013376656,150.0,8.488e-05,2]
[402950830,1769013432915,691.94807496,8.876e-05,2]
[402950831,1769013443576,150.0,8.453e-05,2]
[402950832,1769013459096,-150.0,8.892e-05,2]
[402950833,1769013500584,-150.0,9.296e-05,2]
[402950834,1769013516778,-200.0,9.35e-05,2]
[402950835,1769013516820,150.0,8.373e-05,2]
[402950836,1769013517286,150.0,8.772e-05,2]
[402950837,1769013582630,150.0,8.709e-05,2]
[402950842,1769013746117,-300.0,9.35e-05,2]
[402950881,1769014232504,-551.0,9.35e-05,2]
[402950882,1769014232513,-201.48872037,9.648e-05,2]
[402950883,1769014232522,-155.0,0.0001054,2]
[402950884,1769014232532,-237.75669004,0.00011648,2]
[402950885,1769014232541,-171.24405273,0.00011796,2]
[402950886,1769014232550,-338.23,0.00012329,2]
[402950887,1769014232559,-281.86,0.00012329,2]
[402950888,1769014232568,-234.89,0.00012329,2]
[402950889,1769014232577,-195.74,0.00012329,2]
[402950890,1769014232585,-163.11,0.00012329,2]
[402950891,1769014232594,-815.6,0.00012329,2]
[402950892,1769014232604,-33233.42395354,0.00012537,2]
[402950893,1769014232613,-500.0,0.00013273,2]
[402950894,1769014232622,-603.1388801,0.00013273,2]
[402950895,1769014232632,-377.62445522,0.00013538,2]
[402950896,1769014232641,-274.0246597,0.00013648,2]
[402950897,1769014232650,-213.500671,0.00013699,2]
[402950898,1769014232659,-500.0,0.00013699,2]
[402950899,1769014232668,-500.0,0.00013699,2]
[402950900,1769014232678,-1000.0,0.00013821,2]
[402950901,1769014232687,-951.9716962,0.00014092,2]
[402950902,1769014232696,-571.2762689,0.00014192,2]
[402950904,1769014232705,-603.0173475,0.00014192,2]
[402950906,1769014232715,-185.1202862,0.00014192,2]
[402950908,1769014232725,-185.1202862,0.00014192,2]
[402950910,1769014232735,-603.0173475,0.00014192,2]
[402950912,1769014232746,-305.2931436,0.00014192,2]
[402950914,1769014232756,-185.1202862,0.00014192,2]
[402950916,1769014232765,-153.0,0.00014192,2]
[402950918,1769014232775,-603.0173475,0.00014192,2]
[402950920,1769014232784,-185.1202862,0.00014192,2]
[402950922,1769014232793,-305.2931436,0.00014192,2]
[402950924,1769014232802,-603.0173475,0.00014192,2]
[402950926,1769014232812,-185.1202862,0.00014192,2]
[402950928,1769014232822,-305.2931436,0.00014192,2]
[402950930,1769014232832,-153.0,0.00014192,2]
[402950932,1769014232842,-559.2644975,0.00014192,2]
[402950934,1769014232854,-301.4311903,0.00014192,2]
[402950936,1769014232864,-185.1202862,0.00014192,2]
[402950938,1769014232876,-153.0,0.00014192,2]
[402950940,1769014232886,-185.1202862,0.00014192,2]
[402950942,1769014232895,-185.1202862,0.00014192,2]
[402950944,1769014232905,-185.1202862,0.00014192,2]
[402950946,1769014232915,-153.0,0.00014192,2]
[402950948,1769014232924,-207.01802829,0.00014192,2]
[402950950,1769014232933,-500.0,0.00014249,2]
[402950952,1769014232944,-488.59283817,0.00014249,2]
[402950954,1769014232954,-500.0,0.00014249,2]
[402950956,1769014232963,-500.0,0.00014249,2]
[402950958,1769014232972,-951.97169618,0.00014294,2]
[402950960,1769014232982,-1500.0,0.00014368,2]
[402950962,1769014232992,-500.0,0.00014368,2]
[402950964,1769014233001,-2565.3087919,0.0001449,2]
[402950966,1769014233011,-951.97169618,0.00014496,2]
[402950968,1769014233020,-445.44,0.00014612,2]
[402950970,1769014233029,-1125.7767308,0.0001462,2]
[402950972,1769014233039,-3927.9851731,0.0001462,2]
[402950974,1769014233048,-156.20183162,0.00014642,2]
[402950976,1769014233058,-500.0,0.00014642,2]
[402950978,1769014233068,-3513.4347337,0.00014652,2]
[402950980,1769014233077,-151.0,0.00014652,2]
[402950982,1769014233087,-951.97169618,0.00014698,2]
[402950984,1769014233096,-200.0,0.0001474,2]
[402950986,1769014233108,-200.0,0.0001474,2]
[402950988,1769014233117,-161.89788385,0.0001474,2]
[402950990,1769014233126,-200.0,0.0001474,2]
[402950992,1769014233136,-151.11066286,0.0001474,2]
[402950994,1769014233147,-200.0,0.0001474,2]
[402950996,1769014233156,-500.0,0.0001474,2]
[402950998,1769014233166,-200.0,0.0001474,2]
[402951000,1769014233182,-150.57817943,0.0001474,2]
[402951002,1769014233191,-205.91439709,0.0001474,2]
[402951004,1769014233201,-150.0,0.0001474,2]
[402951006,1769014233211,-181.119152,0.0001474,2]
[402951008,1769014233220,-500.0,0.00014802,2]
[402951010,1769014233229,-500.0,0.00014802,2]
[402951012,1769014233239,-403.66547993,0.00014802,2]
[402951014,1769014233252,-96.33452007,0.00014802,2]
[402951016,1769014233262,-52845.94995616,0.00014803,2]
[402951018,1769014233272,-151.0,0.00014803,2]
[402951020,1769014233281,-165.887156,0.00014803,2]
[402951022,1769014233291,-500.0,0.00014877,2]
[402951024,1769014233300,-150.0,0.00014877,2]
[402951026,1769014233309,-550.2723993,0.00014899,2]
[402951028,1769014233318,-951.97169618,0.000149,2]
[402951030,1769014233328,-208.63687838,0.00014916,2]
[402951032,1769014233337,-500.0,0.00014916,2]
[402951034,1769014233346,-11996.49914885,0.0001499,2]
[402951036,1769014233357,-92127.87178212,0.00015,2]
[402951039,1769014233369,-2859.76356748,0.00015,2]
[402951041,1769014233380,-444.005,0.00015,2]
[402951043,1769014233392,-1919.4402395,0.00015,2]
[402951046,1769014233412,-1495.92169305,0.00015,2]
[402951048,1769014233423,-504.07830695,0.00015,2]
[402951122,1769014238545,-6664.66477909,0.00015,2]
[402951123,1769014238604,-1485.67731641,0.00015,2]
[402951124,1769014238617,-544.79095787,0.00015,2]
[402951125,1769014238655,-1775.9,0.00015,2]
[402951345,1769014240938,-427.19815893,0.00015,2]
[402951510,1769014243681,-185.1202862,0.00014192,2]
[402951511,1769014243691,-249.8797138,0.00015,2]
[402951543,1769014246638,-411.0,0.00015,2]
[402951544,1769014246692,-541.95300005,0.00015,2]
[402951545,1769014246704,-3109.08944009,0.00015,2]
[402951552,1769014587605,-300.0,9.9e-05,2]
[402951700,1769015431631,-165.60265351,9.654e-05,2]
[402951701,1769015431640,-555.0,9.654e-05,2]
[402951702,1769015431650,-187.22331897,9.679e-05,2]
[402951703,1769015431659,-169.50318134,9.999e-05,2]
[402951704,1769015431670,-8.57705505,9.999e-05,2]
[402951705,1769015431680,-207.73533361,9.999e-05,2]
[402951706,1769015431688,-6570.39761134,0.0001,2]
[402951707,1769015431703,-465.60265351,0.0001,2]
[402951708,1769015431714,-8777.70000001,0.0001,2]
[402951709,1769015431724,-720.0,0.0001,2]
[402951786,1769015438156,-5530.08973514,0.0001,2]
[402951788,1769015438166,-155.0,0.00010539,2]
[402951790,1769015438180,-220.92351638,0.00011679,2]
[402951792,1769015438190,-254.6237138,0.00013679,2]
[402951794,1769015438199,-500.0,0.00013699,2]
[402951797,1769015438211,-500.0,0.00013699,2]
[402951798,1769015438221,-153.0,0.00014278,2]
[402951800,1769015438231,-367.6324708,0.00014478,2]
[402951802,1769015438240,-153.0,0.00014578,2]
[402951805,1769015438251,-1738.02072706,0.00014821,2]
[402951807,1769015438262,-283.42207071,0.0001484,2]
[402951809,1769015438271,-150.0,0.0001484,2]
[402951811,1769015438280,-958.87687,0.00014913,2]
[402951813,1769015438289,-1516.6876158,0.0001492,2]
[402951815,1769015438299,-150.0,0.00014977,2]
[402951817,1769015438309,-151.0,0.00014991,2]
[402951819,1769015438319,-151.0,0.00014991,2]
[402951821,1769015438328,-292.226583,0.00014991,2]
[402951823,1769015438338,-292.226583,0.00014991,2]
[402951825,1769015438347,-292.226583,0.00014991,2]
[402951827,1769015438356,-292.226583,0.00014991,2]
[402951829,1769015438366,-445.202766,0.00014991,2]
[402951830,1769015438375,-253.31547403,0.00014991,2]
[402951832,1769015438385,-162.380719,0.00014991,2]
[402951834,1769015438394,-168.3888056,0.00014991,2]
[402951836,1769015438404,-174.61919141,0.00014991,2]
[402951838,1769015438413,-181.08010149,0.00014991,2]
[402951840,1769015438423,-187.78006525,0.00014991,2]
[402951842,1769015438432,-194.72792766,0.00014991,2]
[402951844,1769015438441,-1516.03752843,0.00014991,2]
[402951846,1769015438451,-201.93286099,0.00014991,2]
[402951848,1769015438460,-209.40437684,0.00014991,2]
[402951850,1769015438470,-250.0,0.00014991,2]
[402951852,1769015438479,-217.15233878,0.00014991,2]
[402951854,1769015438488,-225.18697532,0.00014991,2]
[402951856,1769015438497,-233.51889341,0.00014991,2]
[402951858,1769015438507,-242.15909246,0.00014991,2]
[402951860,1769015438516,-151.0,0.00014991,2]
[402951862,1769015438525,-151.0,0.00014991,2]
[402951864,1769015438534,-251.11897888,0.00014991,2]
[402951866,1769015438543,-260.4103811,0.00014991,2]
[402951868,1769015438553,-250.0,0.00014991,2]
[402951870,1769015438562,-270.0455652,0.00014991,2]
[402951872,1769015438572,-252.12797218,0.00014991,2]
[402951874,1769015438581,-280.03725112,0.00014991,2]
[402951876,1769015438590,-290.39862941,0.00014991,2]
[402951878,1769015438600,-301.1433787,0.00014991,2]
[402951880,1769015438609,-673.21677588,0.00014991,2]
[402951882,1769015438619,-199.92611796,0.00014999,2]
[402951884,1769015438629,-72763.66336311,0.00015,2]
[402951886,1769015438638,-151.0,0.00015,2]
[402951888,1769015438648,-169.121376,0.00015,2]
[402951890,1769015438657,-292.226583,0.00015,2]
[402951911,1769015438849,-292.226583,0.00015,2]
[402951913,1769015438859,-292.226583,0.00015,2]
[402951915,1769015438872,-292.226583,0.00015,2]
[402951917,1769015438882,-221.0,0.00015106,2]
[402951919,1769015438892,-541.43191332,0.00015106,2]
[402951921,1769015438902,-10000.0,0.00015114,2]
[402951923,1769015438913,-10000.0,0.00015114,2]
[402951925,1769015438923,-10000.0,0.00015114,2]
[402951927,1769015438933,-4719.07,0.00015114,2]
[402951929,1769015438943,-150.0,0.00015114,2]
[402951931,1769015438953,-166.194915,0.00015114,2]
[402951933,1769015438963,-221.0,0.00015119,2]
[402951935,1769015438974,-221.0,0.00015207,2]
[402951937,1769015438983,-250.0,0.00015251,2]
[402951939,1769015438994,-304.5365019,0.0001526,2]
[402951941,1769015439004,-403.0,0.00015344,2]
[402951943,1769015439014,-479.0,0.00015344,2]
[402951945,1769015439024,-221.0,0.00015352,2]
[402951947,1769015439034,-190.83,0.000154,7]
[402951949,1769015439045,-151.65803186,0.000154,2]
[402951951,1769015439055,-168.96266303,0.000154,2]
[402951953,1769015439066,-173.09026532,0.000154,2]
[402951955,1769015439076,-224.22432065,0.000154,2]
[402951957,1769015439085,-153.0,0.0001543,2]
[402951959,1769015439095,-221.0,0.00015481,2]
[402951961,1769015439108,-359.7702905,0.00015539,2]
[402951963,1769015439120,-221.0,0.0001554,2]
[402951966,1769015439130,-221.0,0.00015547,2]
[402951968,1769015439141,-204.04236409,0.00015577,2]
[402951970,1769015439151,-5000.0,0.0001564,2]
[402951972,1769015439161,-221.0,0.00015659,2]
[402951974,1769015439173,-221.0,0.00015676,2]
[402951976,1769015439184,-288.32391121,0.00015679,2]
[402951978,1769015439194,-221.0,0.00015705,2]
[402951980,1769015439205,-221.0,0.00015728,2]
[402951982,1769015439217,-500.0,0.00015749,30]
[402951984,1769015439227,-500.0,0.00015749,30]
[402951986,1769015439237,-801.85354432,0.00015749,30]
[402951988,1769015439248,-500.0,0.00015749,30]
[402951990,1769015439257,-647.59110955,0.00015749,30]
[402951992,1769015439266,-151.0,0.000158,2]
[402951994,1769015439276,-3237.38,0.00015813,2]
[402951996,1769015439286,-3237.38,0.00015813,2]
[402951998,1769015439296,-3237.38,0.00015813,2]
[402952000,1769015439306,-3237.38,0.00015813,2]
[402952002,1769015439316,-3237.38,0.00015813,2]
[402952004,1769015439325,-3237.38,0.00015813,2]
[402952006,1769015439336,-3237.38,0.00015813,2]
[402952008,1769015439346,-3237.38,0.00015813,2]
[402952010,1769015439355,-3237.38,0.00015813,2]
[402952012,1769015439366,-3237.38,0.00015813,2]
[402952014,1769015439378,-3237.38,0.00015813,2]
[402952017,1769015439388,-3237.38,0.00015813,2]
[402952019,1769015439398,-3237.38,0.00015813,2]
[402952021,1769015439407,-3237.38,0.00015813,2]
[402952023,1769015439417,-3237.38,0.00015813,2]
[402952025,1769015439426,-3237.38,0.00015813,2]
[402952027,1769015439437,-3237.38,0.00015813,2]
[402952029,1769015439446,-3237.38,0.00015813,2]
[402952031,1769015439455,-3237.38,0.00015813,2]
[402952033,1769015439465,-3237.38,0.00015813,2]
[402952035,1769015439475,-3237.38,0.00015813,2]
[402952037,1769015439484,-3237.38,0.00015813,2]
[402952039,1769015439494,-3237.38,0.00015813,2]
[402952041,1769015439503,-3237.38,0.00015813,2]
[402952043,1769015439512,-3237.38,0.00015813,2]
[402952045,1769015439521,-3237.38,0.00015813,2]
[402952047,1769015439530,-3237.38,0.00015813,2]
[402952049,1769015439540,-3237.38,0.00015813,2]
[402952051,1769015439549,-3237.38,0.00015813,2]
[402952052,1769015439558,-3237.38,0.00015813,2]
[402952054,1769015439567,-3237.38,0.00015813,2]
[402952056,1769015439576,-3237.38,0.00015813,2]
[402952058,1769015439585,-3237.38,0.00015813,2]
[402952060,1769015439594,-3237.38,0.00015813,2]
[402952062,1769015439603,-3237.38,0.00015813,2]
[402952064,1769015439613,-3237.38,0.00015813,2]
[402952066,1769015439623,-3237.38,0.00015813,2]
[402952068,1769015439632,-3237.38,0.00015813,2]
[402952070,1769015439642,-3237.38,0.00015813,2]
[402952072,1769015439652,-3237.38,0.00015813,2]
[402952074,1769015439661,-3237.38,0.00015813,2]
[402952076,1769015439671,-3237.38,0.00015813,2]
[402952078,1769015439680,-3237.38,0.00015813,2]
[402952080,1769015439689,-3237.38,0.00015813,2]
[402952082,1769015439699,-3237.38,0.00015813,2]
[402952084,1769015439708,-3237.38,0.00015813,2]
[402952086,1769015439717,-3237.38,0.00015813,2]
[402952088,1769015439726,-3237.38,0.00015813,2]
[402952090,1769015439736,-3237.38,0.00015813,2]
[402952092,1769015439746,-3237.38,0.00015813,2]
[402952094,1769015439756,-3237.38,0.00015813,2]
[402952096,1769015439765,-3237.38,0.00015813,2]
[402952098,1769015439775,-3237.38,0.00015813,2]
[402952100,1769015439784,-3237.38,0.00015813,2]
[402952102,1769015439793,-3237.38,0.00015813,2]
[402952104,1769015439802,-3237.38,0.00015813,2]
[402952106,1769015439811,-3237.38,0.00015813,2]
[402952108,1769015439821,-3237.38,0.00015813,2]
[402952110,1769015439831,-3237.38,0.00015813,2]
[402952112,1769015439840,-3237.38,0.00015813,2]
[402952114,1769015439850,-3237.38,0.00015813,2]
[402952116,1769015439859,-3237.38,0.00015813,2]
[402952118,1769015439869,-3237.38,0.00015813,2]
[402952120,1769015439879,-3237.38,0.00015813,2]
[402952122,1769015439889,-3237.38,0.00015813,2]
[402952124,1769015439899,-3237.38,0.00015813,2]
[402952126,1769015439908,-3237.38,0.00015813,2]
[402952128,1769015439918,-3237.38,0.00015813,2]
[402952130,1769015439927,-3374.62,0.00015813,2]
[402952132,1769015439937,-223.52,0.00015813,2]
[402952134,1769015439947,-151.0,0.00015813,2]
[402952135,1769015439956,-151.0,0.00015813,2]
[402952138,1769015439966,-151.0,0.00015813,2]
[402952140,1769015439975,-292.226583,0.00015813,2]
[402952141,1769015439984,-292.226583,0.00015813,2]
[402952143,1769015439994,-292.226583,0.00015813,2]
[402952145,1769015440003,-292.226583,0.00015813,2]
[402952148,1769015440013,-292.226583,0.00015813,2]
[402952150,1769015440022,-292.226583,0.00015813,2]
[402952152,1769015440031,-292.226583,0.00015813,2]
[402952153,1769015440040,-292.226583,0.00015813,2]
[402952155,1769015440050,-292.226583,0.00015813,2]
[402952158,1769015440059,-292.226583,0.00015813,2]
[402952160,1769015440068,-292.226583,0.00015813,2]
[402952161,1769015440077,-292.226587,0.00015813,2]
[402952164,1769015440088,-221.0,0.00015841,2]
[402952166,1769015440097,-224.22432065,0.00015919,9]
[402952168,1769015440107,-221.0,0.00015934,2]
[402952170,1769015440117,-224025.92693133,0.00016,2]
[402952172,1769015440130,-4039.21587673,0.00016,2]
[402952174,1769015440141,-5361.22838072,0.00016,2]
[402952176,1769015440152,-3238.74439699,0.00016,2]
[402952179,1769015440163,-57939.80367845,0.00016,2]
[402952189,1769015440517,-1294.32601817,0.00016,2]
[402952653,1769015445906,-1781.76692147,0.00016,2]
[402952654,1769015445918,-335.55999991,0.00016,2]
[402952655,1769015445959,-44825.31814931,0.00016,2]
[402952864,1769015770802,-300.0,0.00016,30]
[402952866,1769015772580,-300.0,0.00016,30]
[402952966,1769016082273,150.0,8.324e-05,2]
[402953089,1769016397131,-517.72364802,0.00010379,2]
[402953108,1769016435749,1950.54995917,0.00011,20]
[402953195,1769016631896,-187.8501798,0.0001,2]
[402953196,1769016631907,-1016.72874072,0.0001,2]
[402953198,1769016631917,-560.0,0.0001,2]
[402953199,1769016631927,-180.89906163,0.00010138,2]
[402953200,1769016631936,-1200.0,0.00010274,2]
[402953201,1769016631946,-5000.0,0.00010275,2]
[402953202,1769016631955,-155.0,0.00010537,2]
[402953203,1769016631964,-213.46089272,0.00012138,2]
[402953204,1769016631974,-500.0,0.00013699,2]
[402953205,1769016631983,-246.02272381,0.00014138,2]
[402953206,1769016631992,-300.0,0.00015566,2]
[402953207,1769016632002,-300.0,0.00015566,2]
[402953208,1769016632011,-300.0,0.00015566,2]
[402953209,1769016632021,-300.0,0.00015566,2]
[402953210,1769016632030,-1000.0,0.00015567,2]
[402953211,1769016632039,-50000.0,0.00015677,2]
[402953212,1769016632048,-2158.28543149,0.0001568,2]
[402953213,1769016632058,-151.65283069,0.0001589,2]
[402953214,1769016632067,-1036.59370576,0.000159,2]
[402953243,1769016637944,-466.92032339,0.00015741,2]
[402953245,1769016637954,-6088.04679891,0.000159,2]
[402953247,1769016637965,-2420.67279896,0.000159,2]
[402953257,1769016638053,-1374.81438009,0.000159,2]
[402953484,1769016640305,-2251.45135725,0.0001558,2]
[402953486,1769016640315,-32708.54864275,0.000159,2]
[402953491,1769016640359,-444.45377304,0.000159,2]
[402953492,1769016640371,-1968.82029889,0.000159,2]
[402953779,1769016643270,-1632.63,0.000159,2]
[402953793,1769016643789,-355.35262017,0.000159,2]
[402953870,1769016646298,-6237.11498842,0.000159,2]
[402953872,1769016646310,-4044.40435005,0.000159,2]
[402953874,1769016646322,-453.0,0.000159,2]
[402953940,1769016720706,150.0,8.393e-05,2]
[402953941,1769016721138,150.0,8.793e-05,2]
[402953981,1769016787489,150.0,8.688e-05,2]
[402954016,1769016852896,150.0,8.449e-05,2]
[402954017,1769016853317,150.0,8.852e-05,2]
[402954980,1769017838057,-564.0,0.00010271,2]
[402954981,1769017838068,-180.16174385,0.00010271,2]
[402954983,1769017838083,-155.0,0.00010271,2]
[402954985,1769017838102,-212.59085774,0.00012271,2]
[402954987,1769017838120,-2556.0329127,0.00012301,2]
[402954989,1769017838131,-411.50235455,0.00013571,2]
[402954991,1769017838140,-300.0,0.00013651,2]
[402954992,1769017838149,-1119.96241241,0.00013652,2]
[402954995,1769017838161,-788.71922216,0.00013652,2]
[402954997,1769017838176,-818.02365166,0.00013652,2]
[402955211,1769017840269,-604.0,0.00013652,2]
[402955217,1769017840323,-355.15377932,0.00013652,2]
[402955497,1769017843254,-500.70911447,0.00013652,2]
[402955650,1769017846458,-1729.14806277,0.00013652,2]
[402955651,1769017846469,-5623.05782176,0.00013652,2]
[402955652,1769017846480,-396.61442172,0.00013652,2]
[402957279,1769017880872,150.0,8.276e-05,2]
[402957281,1769017881309,150.0,8.67e-05,2]
[402957298,1769017957660,150.0,8.191e-05,2]
[402957299,1769017958088,150.0,8.581e-05,2]
[402957314,1769018031812,150.0,8.314e-05,2]
[402957315,1769018032283,150.0,8.71e-05,2]
[402957316,1769018104851,150.0,8.33e-05,2]
[402957317,1769018105530,150.0,8.726e-05,2]
[402957329,1769018178250,150.0,8.43e-05,2]
[402957330,1769018178730,150.0,8.831e-05,2]
[402957331,1769018252463,150.0,8.432e-05,2]
[402957332,1769018252853,150.0,8.834e-05,2]
[402957333,1769018323429,150.0,8.424e-05,2]
[402957334,1769018324169,150.0,8.826e-05,2]
[402958538,1769018393863,150.0,8.38e-05,2]
[402958539,1769018394291,150.0,8.779e-05,2]
[402959976,1769018463807,150.0,8.463e-05,2]
[402959987,1769018464245,150.0,8.866e-05,2]
[402960973,1769018532435,150.0,8.445e-05,2]
[402960983,1769018532871,150.0,8.847e-05,2]
[402962498,1769018599955,150.0,8.441e-05,2]
[402962507,1769018600375,150.0,8.843e-05,2]
[402963986,1769018667166,150.0,8.331e-05,2]
[402963998,1769018667594,150.0,8.728e-05,2]
[402965481,1769018734745,150.0,8.308e-05,2]
[402965488,1769018735019,150.0,8.704e-05,2]
[402966687,1769018800339,150.0,8.324e-05,2]
[402966694,1769018800748,150.0,8.721e-05,2]
[402968766,1769019032151,-549.0,9.233e-05,2]
[402968767,1769019032166,-184.68918506,9.253e-05,2]
[402968768,1769019032175,-142.86081494,0.00010554,2]
[402968769,1769019032210,-12.13918506,0.00010554,2]
[402968770,1769019032219,-217.93323837,0.00011253,2]
[402968771,1769019032229,-500.0,0.00011969,2]
[402968772,1769019032238,-500.0,0.00011969,2]
[402968785,1769019032459,-500.0,0.00011969,2]
[402968786,1769019032469,-500.0,0.00011969,2]
[402968787,1769019032479,-500.0,0.00011969,2]
[402968788,1769019032488,-500.0,0.00011969,2]